bitfinex-derivatives/quotes_SOLF0:USTF0_20250919
["timestamp","ask_amount","ask_price","bid_price","bid_amount"]
[1758265100284,0.02859249,243.94,243.93,1.36961714]
[1758265100587,1.36961714,244.02,243.93,12.27191464]
[1758265100789,1.36961714,244.02,243.94,3.7422975]
[1758265100979,1.36961714,244.02,243.95,3.7422975]
[1758265101288,1.36961714,244.02,243.96,3.7422975]
[1758265101586,1.36961714,244.02,243.93,8.52961714]
[1758265104681,1.36961714,244.02,243.94,7.16]
[1758265104889,1.36961714,244.03,243.94,7.16]
[1758265105092,0.0310939,244.0,243.94,7.16]
[1758265105789,0.0310939,244.0,243.96,7.16]
[1758265105980,0.0310939,244.0,243.94,3.44218728]
[1758265105981,0.0310939,244.0,243.97,1.36961714]
[1758265106481,0.0310939,244.0,243.98,7.16]
[1758265106783,0.0310939,244.0,243.99,1.36961714]
[1758265106990,0.0310939,244.0,243.99,7.16]
[1758265114096,0.0110939,244.0,243.99,7.16]
[1758265122901,1.38071104,244.0,243.97,0.02868822]
[1758265123205,1.36961714,243.98,243.97,0.02868822]
[1758265126807,0.0110939,244.0,243.97,0.02868822]
[1758265127005,1.36961714,243.98,243.97,0.02868822]
[1758265129510,1.76961714,243.98,243.97,0.02868822]
[1758265129810,1.76961714,243.98,243.88,6.87]
[1758265130003,1.36961714,243.9,243.88,6.87]
[1758265130409,1.36961714,243.9,243.84,10.3072738]
[1758265130607,1.36961714,243.86,243.84,6.87]
[1758265130911,0.02755231,243.89,243.84,6.87]
[1758265131209,1.36961714,243.86,243.82,3.4372738]
[1758265131704,1.36961714,243.86,243.83,6.87]
[1758265131908,6.93,243.85,243.76,6.85774377]
[1758265132105,1.36961714,243.77,243.58,12.29412081]
[1758265132300,1.36961714,243.71,243.61,1.36961714]
[1758265132502,7.87961714,243.73,243.56,12.32467707]
[1758265132707,0.02939216,243.7,243.62,1.36961714]
[1758265133307,1.02597702,243.69,243.62,1.36961714]
[1758265133706,1.02597702,243.68,243.62,1.36961714]
[1758265133907,1.02597702,243.67,243.63,6.87]
[1758265134103,1.02597702,243.66,243.62,1.36961714]
[1758265134312,0.02939216,243.7,243.62,1.36961714]
[1758265134313,0.02939216,243.7,243.63,6.87]
[1758265135712,1.36961714,243.65,243.56,6.87]
[1758265136014,1.36961714,243.62,243.56,6.87]
[1758265136513,0.02939239,243.61,243.54,6.76]
[1758265140513,0.02939239,243.61,243.56,1.36961714]
[1758265140818,0.02939239,243.61,243.58,1.36961714]
[1758265141012,0.02939239,243.61,243.52,57.4596]
[1758265141219,0.02939239,243.61,243.59,7.09]
[1758265141613,0.02939239,243.61,243.58,7.09]
[1758265142526,0.02939239,243.61,243.57,1.36961714]
[1758265142716,0.02939239,243.61,243.58,7.09]
[1758265143320,0.02939239,243.61,243.57,1.36961714]
[1758265143819,0.02939239,243.61,243.6,7.09]
[1758265145321,0.02939239,243.61,243.6,7.51]
[1758265147818,0.02939239,243.61,243.6,9.65368861]
[1758265148019,0.02939239,243.61,243.6,112.97368861]
[1758265149518,6.52,243.71,243.6,112.97368861]
[1758265149519,6.52,243.71,243.63,7.09]
[1758265150517,2.14368861,243.74,243.63,7.09]
[1758265150724,5.04368861,243.81,243.62,3.6923]
[1758265150725,6.55,243.75,243.65,7.09]
[1758265150923,6.55,243.75,243.65,7.11627797]
[1758265151120,6.55,243.75,243.65,7.09]
[1758265151525,6.55,243.75,243.69,7.09]
[1758265152524,6.55,243.75,243.68,0.03100794]
[1758265152920,2.14368861,243.74,243.68,0.03100794]
[1758265153526,6.55,243.73,243.68,0.03100794]
[1758265153825,2.14368861,243.74,243.68,0.03100794]
[1758265154025,6.55,243.73,243.68,0.03100794]
[1758265154426,2.14368861,243.74,243.68,0.03100794]
[1758265155321,6.55,243.73,243.68,0.03100794]
[1758265155723,2.14368861,243.74,243.68,0.03100794]
[1758265156026,8.69368861,243.74,243.68,0.03100794]
[1758265156632,6.55,243.74,243.68,0.03100794]
[1758265156830,8.69368861,243.74,243.68,0.03100794]
[1758265158730,6.55,243.74,243.68,7.12100794]
[1758265159135,6.51,243.74,243.68,7.12100794]
[1758265159431,2.14368861,243.77,243.68,7.12100794]
[1758265160533,5.04368861,243.81,243.68,7.12100794]
[1758265160733,2.94296375,243.8,243.68,7.12100794]
[1758265160934,2.14368861,243.78,243.68,7.12100794]
[1758265161238,6.51,243.76,243.68,7.12100794]
[1758265162138,6.51,243.8,243.68,7.12100794]
[1758265162337,2.9454778,243.79,243.68,7.12100794]
[1758265162539,6.51,243.8,243.68,7.12100794]
[1758265162737,2.94648351,243.79,243.68,7.12100794]
[1758265162938,2.94648351,243.78,243.68,7.12100794]
[1758265163134,6.51,243.8,243.68,7.12100794]
[1758265163341,8.65368861,243.78,243.68,7.12100794]
[1758265163939,6.51,243.76,243.68,7.12100794]
[1758265166342,2.95235088,243.75,243.69,7.09]
[1758265166639,6.51,243.76,243.69,7.09]
[1758265166838,0.02896141,243.74,243.69,7.09]
[1758265167041,0.02896141,243.74,243.68,3.72240794]
[1758265167233,0.02896141,243.74,243.69,7.09]
[1758265168039,0.02896141,243.74,243.69,6.87]
[1758265168239,0.02896141,243.74,243.68,3.72240794]
[1758265168746,0.02896141,243.74,243.69,6.87]
[1758265168938,0.02896141,243.74,243.68,3.72240794]
[1758265169140,0.02896141,243.74,243.69,6.87]
[1758265169948,0.02896141,243.74,243.68,6.90100794]
[1758265171345,2.87979036,243.73,243.68,6.90100794]
[1758265171654,0.02896141,243.74,243.68,0.03100794]
[1758265171655,2.17265002,243.74,243.68,0.03100794]
[1758265171847,2.87970745,243.73,243.68,0.03100794]
[1758265172045,6.5,243.71,243.68,0.03100794]
[1758265172344,2.17265002,243.74,243.68,0.03100794]
[1758265172537,2.88275903,243.73,243.68,0.03100794]
[1758265172738,6.5,243.71,243.68,0.03100794]
[1758265172941,2.17265002,243.74,243.68,0.03100794]
[1758265173141,2.88275904,243.73,243.68,0.03100794]
[1758265173440,2.88275904,243.72,243.68,0.03100794]
[1758265173636,2.17265002,243.74,243.68,0.03100794]
[1758265173637,2.88275904,243.71,243.68,0.03100794]
[1758265173840,9.38275904,243.7,243.68,0.03100794]
[1758265174041,6.5,243.73,243.68,0.03100794]
[1758265174241,6.5,243.73,243.63,6.87]
[1758265174242,10.40229542,243.72,243.63,6.86100794]
[1758265174439,2.87637989,243.71,243.63,6.86100794]
[1758265175249,3.90230823,243.7,243.63,6.86100794]
[1758265175448,2.87637989,243.69,243.63,6.86100794]
[1758265175648,2.87637989,243.68,243.6,5.83618861]
[1758265175849,2.87637989,243.67,243.6,5.83618861]
[1758265176050,0.03057351,243.68,243.6,79.89618861]
[1758265176352,2.86597634,243.67,243.61,6.87]
[1758265176546,2.86597634,243.66,243.6,80.36]
[1758265176747,2.86597634,243.65,243.61,6.87]
[1758265176950,0.03057351,243.68,243.61,6.87]
[1758265177149,2.86966034,243.67,243.61,6.87]
[1758265177351,2.86966034,243.66,243.6,80.36]
[1758265177545,0.03057351,243.68,243.61,6.87]
[1758265177746,2.8696565,243.67,243.61,6.87]
[1758265178046,2.8696565,243.66,243.6,80.36]
[1758265178242,0.03057351,243.68,243.61,6.87]
[1758265178455,2.86905585,243.67,243.61,6.87]
[1758265178649,0.03057351,243.68,243.61,6.87]
[1758265178854,2.82455827,243.67,243.61,6.87]
[1758265179151,0.03057351,243.68,243.61,6.87]
[1758265180854,0.03057351,243.68,243.59,5.83638861]
[1758265180855,0.03057351,243.68,243.65,2.14368861]
[1758265181054,0.03057351,243.68,243.66,6.87]
[1758265181650,0.03057351,243.68,243.65,2.14368861]
[1758265182648,0.03057351,243.68,243.66,6.87]
[1758265182852,0.03057351,243.68,243.65,2.14368861]
[1758265183052,0.03057351,243.68,243.66,6.87]
[1758265183555,0.03057351,243.68,243.65,2.14368861]
[1758265183755,0.03057351,243.68,243.66,6.87]
[1758265184156,0.03057351,243.68,243.66,10.5617]
[1758265184456,0.03057351,243.68,243.67,6.87]
[1758265189460,0.03057351,243.68,243.67,6.81]
[1758265195464,6.60057351,243.68,243.64,6.87]
[1758265195962,0.03057351,243.68,243.62,6.54]
[1758265196158,0.03057351,243.68,243.63,102.42]
[1758265196566,0.03057351,243.68,243.64,102.42]
[1758265196862,0.03057351,243.68,243.65,6.54]
[1758265197558,0.03057351,243.68,243.65,102.4]
[1758265197857,0.03057351,243.68,243.66,6.54]
[1758265198057,0.03057351,243.68,243.66,6.62]
[1758265198660,0.03057351,243.68,243.65,104.54368861]
[1758265198861,0.03057351,243.68,243.66,6.62]
[1758265199865,0.03057351,243.68,243.65,104.54368861]
[1758265200064,0.03057351,243.68,243.66,6.62]
[1758265200260,0.03057351,243.68,243.67,102.4]
[1758265200466,0.03057351,243.68,243.67,6.62]
[1758265200862,0.03057351,243.68,243.62,4.59747847]
[1758265201159,0.03057351,243.68,243.63,6.62]
[1758265201463,0.03057351,243.68,243.61,4.59747847]
[1758265201464,6.57,243.67,243.61,4.59747847]
[1758265201661,6.57,243.67,243.61,11.21747847]
[1758265201865,6.57,243.67,243.62,102.36]
[1758265202059,6.57,243.67,243.63,6.62]
[1758265202465,6.57,243.67,243.64,102.34]
[1758265202865,6.57,243.67,243.61,11.21747847]
[1758265203064,6.57,243.67,243.64,102.34]
[1758265203265,6.57,243.67,243.65,3.45516166]
[1758265203762,0.03057351,243.68,243.65,3.45516166]
[1758265203967,0.03057351,243.68,243.65,10.07516166]
[1758265204162,6.60057351,243.68,243.65,6.62]
[1758265204363,6.60057351,243.68,243.64,68.25516166]
[1758265204364,0.03057351,243.68,243.66,3.45516166]
[1758265204560,6.57,243.81,243.68,6.62]
[1758265204867,8.71368861,243.81,243.75,3.45419618]
[1758265205160,8.71368861,243.81,243.74,3.45419618]
[1758265205360,8.71368861,243.81,243.73,35.07419618]
[1758265205560,5.56,243.91,243.74,3.45419618]
[1758265205766,2.14368861,243.83,243.76,3.45419618]
[1758265205965,2.14368861,243.83,243.77,3.45419618]
[1758265206163,2.14368861,243.83,243.76,3.45419618]
[1758265207067,6.57,243.82,243.75,76.75419618]
[1758265207865,6.57,243.82,243.75,10.07419618]
[1758265207866,1.37092922,243.79,243.75,10.07419618]
[1758265208257,1.37092922,243.79,243.75,6.62]
[1758265208463,1.37092922,243.79,243.74,3.45419618]
[1758265208669,1.37092922,243.79,243.75,6.62]
[1758265208868,1.37092922,243.79,243.75,10.07419618]
[1758265209366,1.37092922,243.79,243.76,6.62]
[1758265209767,7.94092922,243.81,243.76,6.62]
[1758265209959,1.37092922,243.81,243.76,6.62]
[1758265210165,1.37092922,243.81,243.75,3.45419618]
[1758265210366,1.37092922,243.81,243.75,10.07419618]
[1758265210564,6.57,243.85,243.77,3.45419618]
[1758265210565,1.37092922,243.85,243.77,3.45419618]
[1758265210766,1.37092922,243.86,243.78,6.62]
[1758265210968,1.37092922,243.86,243.78,10.07419618]
[1758265211273,1.37092922,243.86,243.79,0.02715358]
[1758265211474,1.37092922,243.86,243.8,6.62]
[1758265211674,1.37092922,243.86,243.8,10.07419618]
[1758265212077,6.57,243.89,243.8,10.07419618]
[1758265212078,1.37092922,243.87,243.8,10.07419618]
[1758265212272,1.37092922,243.87,243.8,6.62]
[1758265212677,1.37092922,243.85,243.8,6.62]
[1758265212979,1.37092922,243.85,243.79,10.10134976]
[1758265213167,1.37092922,243.85,243.79,6.64715358]
[1758265215176,1.37092922,243.87,243.81,6.62]
[1758265215677,1.37092922,243.88,243.81,6.62]
[1758265217682,1.37092922,243.86,243.8,6.62]
[1758265218679,7.94092922,243.86,243.8,6.62]
[1758265219379,6.57,243.86,243.8,6.62]
[1758265219581,1.37092922,243.85,243.79,6.64715358]
[1758265220085,6.57,243.91,243.79,6.64715358]
[1758265220383,1.37092922,243.9,243.81,6.62]
[1758265220786,1.37092922,243.9,243.83,0.02646286]
[1758265220984,1.37092922,243.9,243.83,6.64646286]
[1758265221375,6.57,243.91,243.83,6.64646286]
[1758265221580,1.37092922,243.9,243.83,6.64646286]
[1758265223391,6.57,243.91,243.83,8.01739208]
[1758265223580,7.94092922,243.91,243.83,8.01739208]
[1758265223982,6.57,243.95,243.83,8.01739208]
[1758265224186,1.37092922,243.92,243.83,8.01739208]
[1758265224584,1.37092922,243.92,243.85,1.37092922]
[1758265225383,1.37092922,243.92,243.83,8.01739208]
[1758265226191,1.37092922,243.93,243.86,6.62]
[1758265226488,6.57,243.95,243.86,6.62]
[1758265226691,1.37092922,243.93,243.86,6.62]
[1758265227187,6.57,243.95,243.87,0.02707765]
[1758265227390,1.37092922,243.93,243.87,0.02707765]
[1758265227792,1.37092922,243.88,243.87,0.02707765]
[1758265228089,6.57,243.88,243.87,0.02707765]
[1758265228286,7.94092922,243.88,243.82,6.62]
[1758265228883,7.93092922,243.86,243.83,0.02739127]
[1758265229083,6.56,243.85,243.83,0.02739127]
[1758265229290,1.37092922,243.86,243.78,8.44092922]
[1758265229888,6.07092922,243.86,243.8,0.02681994]
[1758265230591,6.56,243.81,243.8,0.02681994]
[1758265230992,0.03028669,243.85,243.8,0.02681994]
[1758265231187,0.03028669,243.85,243.81,7.07]
[1758265231696,0.03028669,243.85,243.83,1.37092922]
[1758265231890,0.03028669,243.85,243.84,7.07]
[1758265232888,6.59028669,243.85,243.81,7.07]
[1758265233091,7.96121591,243.85,243.81,7.07]
[1758265233296,7.96121591,243.85,243.8,0.02681994]
[1758265233297,6.56,243.84,243.8,0.02681994]
[1758265233795,6.56,243.84,243.8,7.09681994]
[1758265234399,1.40121591,243.85,243.8,0.02681994]
[1758265234587,0.03028669,243.85,243.81,7.07]
[1758265234789,0.03028669,243.85,243.82,1.37092922]
[1758265235194,0.03028669,243.85,243.83,7.07]
[1758265235396,0.03028669,243.85,243.82,1.37092922]
[1758265235595,0.03028669,243.85,243.83,7.07]
[1758265236092,0.03028669,243.85,243.81,7.07]
[1758265237194,0.03028669,243.85,243.8,1.39774916]
[1758265238093,0.03028669,243.85,243.81,7.07]
[1758265238595,0.03028669,243.85,243.8,1.39774916]
[1758265238995,0.03028669,243.85,243.83,7.07]
[1758265239405,0.03028669,243.85,243.84,8.44092922]
[1758265239602,0.03028669,243.85,243.84,7.07]
[1758265239796,0.03028669,243.85,243.84,8.44092922]
[1758265241199,0.03028669,243.85,243.84,110.42092922]
[1758265241900,0.03028669,243.85,243.84,110.40092922]
[1758265243299,0.03028669,243.85,243.84,114.08992922]
[1758265243496,5.52,243.92,243.85,7.07]
[1758265243697,5.52,243.92,243.91,7.07]
[1758265243899,6.56,243.98,243.91,7.07]
[1758265244205,6.56,243.98,243.92,3.64127817]
[1758265244405,7.96092922,243.99,243.93,3.64127817]
[1758265244600,1.37092922,243.99,243.94,3.64127817]
[1758265244796,6.59,243.98,243.95,3.64127817]
[1758265245106,6.59,243.98,243.96,3.64127817]
[1758265245300,6.59,243.98,243.97,3.64127817]
[1758265247310,6.17,244.05,243.97,3.64127817]
[1758265247311,6.59,244.03,243.97,3.64127817]
[1758265247602,6.17,244.05,243.98,3.64127817]
[1758265247603,7.96092922,244.04,243.98,3.64127817]
[1758265247797,6.59,244.03,243.99,3.64127817]
[1758265247997,1.37092922,244.04,244.0,3.64127817]
[1758265248199,1.37092922,244.04,244.01,3.64127817]
[1758265248401,6.59,244.03,244.02,3.64127817]
[1758265248999,6.17,244.05,244.02,3.64127817]
[1758265249307,6.17,244.05,244.03,3.64127817]
[1758265249605,6.11,244.05,244.04,3.64127817]
[1758265251208,6.11,244.05,244.04,12.08220739]
[1758265251505,6.11,244.05,244.04,10.71127817]
[1758265252010,12.7,244.05,244.04,3.64127817]
[1758265252206,6.11,244.05,244.04,3.64127817]
[1758265252506,6.11,244.05,244.04,10.71127817]
[1758265253101,6.11,244.05,244.04,3.64127817]
[1758265253614,6.11,244.05,244.04,10.71127817]
[1758265256613,3.03769119,244.05,244.04,14.14543621]
[1758265257210,3.03769119,244.05,244.04,14.1348142]
[1758265257413,3.03769119,244.05,244.04,64.97353603]
[1758265257716,3.03769119,244.05,244.04,7.07]
[1758265258914,3.03769119,244.05,244.04,8.44092922]
[1758265259817,3.03769119,244.05,244.04,110.16092922]
[1758265260215,3.03769119,244.05,244.04,8.44092922]
[1758265262422,3.03769119,244.05,244.04,109.63092922]
[1758265263222,6.61,244.18,244.06,6.54]
[1758265263421,7.98092922,244.18,244.09,1.37092922]
[1758265263625,6.75,244.11,244.04,101.74]
[1758265263819,1.37092922,244.1,244.01,20.16126588]
[1758265264130,1.31092922,244.1,244.02,101.78]
[1758265264323,1.31092922,244.1,244.03,0.02862256]
[1758265264826,1.37092922,244.1,244.04,6.54]
[1758265265021,6.75,244.12,244.04,6.54]
[1758265265228,6.75,244.12,244.04,7.91092922]
[1758265265428,8.12092922,244.12,244.04,7.91092922]
[1758265265727,6.75,244.12,244.06,0.02725248]
[1758265265925,8.12092922,244.12,244.06,0.02725248]
[1758265268223,6.75,244.07,244.06,0.02725248]
[1758265270030,6.75,244.08,244.06,0.02725248]
[1758265270631,2.13751497,244.09,244.06,0.02725248]
[1758265270828,6.75,244.13,244.06,0.02725248]
[1758265271034,6.75,244.11,244.06,0.02725248]
[1758265271430,2.13751497,244.12,244.06,0.02725248]
[1758265271942,6.75,244.11,244.06,0.02725248]
[1758265272135,2.13751497,244.12,244.06,0.02725248]
[1758265272335,8.88751497,244.12,244.06,0.02725248]
[1758265272638,6.75,244.12,244.06,0.02725248]
[1758265272836,8.88751497,244.12,244.06,0.02725248]
[1758265273438,4.54,244.14,244.06,0.02725248]
[1758265274345,0.03016078,244.12,244.07,6.54]
[1758265274541,6.78016078,244.12,244.07,6.54]
[1758265275247,6.78016078,244.12,244.06,6.56725248]
[1758265276834,6.78016078,244.12,244.06,0.02725248]
[1758265277242,2.13751497,244.1,244.06,0.02725248]
[1758265277945,6.75,244.09,244.06,0.02725248]
[1758265278545,2.13751497,244.1,244.06,0.02725248]
[1758265278747,6.75,244.09,244.06,0.02725248]
[1758265279452,6.75,244.1,244.06,0.02725248]
[1758265279760,2.13751497,244.11,244.06,0.02725248]
[1758265279954,0.03016078,244.12,244.06,0.02725248]
[1758265280159,2.16767575,244.12,244.06,0.02725248]
[1758265280353,6.75,244.11,244.06,0.02725248]
[1758265280557,2.13751497,244.09,244.06,0.02725248]
[1758265280955,6.75,244.08,244.06,0.02725248]
[1758265281152,2.13751497,244.09,244.06,0.02725248]
[1758265281459,6.75,244.08,244.06,0.02725248]
[1758265282458,2.13751497,244.09,244.06,0.02725248]
[1758265282650,6.75,244.07,244.06,0.02725248]
[1758265282856,6.75,244.11,244.06,0.02725248]
[1758265283457,2.16767575,244.12,244.06,0.02725248]
[1758265284061,8.91767575,244.12,244.06,0.02725248]
[1758265284263,6.78016078,244.12,244.06,0.02725248]
[1758265284463,0.03016078,244.12,244.06,0.02725248]
[1758265284964,0.03016078,244.12,244.07,6.54]
[1758265285453,0.03016078,244.12,244.06,3.45078851]
[1758265285657,0.03016078,244.12,244.07,6.54]
[1758265285861,0.03016078,244.12,244.06,3.45078851]
[1758265286153,0.03016078,244.12,244.09,6.54]
[1758265286358,0.03016078,244.12,244.08,2.13751497]
[1758265287258,0.03016078,244.12,244.09,6.54]
[1758265288167,0.03016078,244.12,244.09,6.53]
[1758265288563,0.03016078,244.12,244.08,5.561051]
[1758265288866,0.03016078,244.12,244.1,6.53]
[1758265289054,6.71016078,244.12,244.09,3.42353603]
[1758265289565,6.71016078,244.12,244.08,3.42353603]
[1758265289960,0.03016078,244.12,244.1,6.53]
[1758265290468,0.03016078,244.12,244.1,9.95353603]
[1758265291963,0.03016078,244.12,244.1,3.42353603]
[1758265293268,0.03016078,244.12,244.11,9.95353603]
[1758265294268,0.03016078,244.12,244.11,6.53]
[1758265297471,0.03016078,244.12,244.11,3.44403741]
[1758265298971,0.03016078,244.12,244.11,9.97403741]
[1758265299574,0.03016078,244.12,244.11,13.27310988]
[1758265299775,6.27,244.15,244.12,6.53]
[1758265299976,6.27,244.15,244.14,8.66751497]
[1758265300367,6.27,244.15,244.14,13.25866751]
[1758265300564,6.27,244.15,244.13,4.59115254]
[1758265300767,6.27,244.15,244.14,4.59115254]
[1758265300975,6.27,244.15,244.13,11.12115254]
[1758265301966,12.95,244.15,244.13,4.59115254]
[1758265302175,12.95,244.15,244.12,4.61796574]
[1758265302878,12.95,244.15,244.14,3.44286418]
[1758265303077,12.95,244.15,244.13,3.44286418]
[1758265303078,6.68,244.14,244.13,3.44286418]
[1758265303273,6.68,244.14,244.12,3.46967738]
[1758265303778,8.40751497,244.15,244.13,3.44286418]
[1758265304073,8.40751497,244.15,244.12,3.46967738]
[1758265304278,15.08751497,244.15,244.12,3.46967738]
[1758265305377,15.08751497,244.15,244.13,3.44286418]
[1758265305573,8.40751497,244.15,244.13,3.44286418]
[1758265306081,8.40751497,244.15,244.14,3.44286418]
[1758265306279,6.27,244.15,244.14,3.44286418]
[1758265307075,12.95,244.15,244.14,3.44286418]
[1758265307280,12.95,244.15,244.13,3.44286418]
[1758265308383,6.27,244.15,244.13,3.44286418]
[1758265308582,6.68,244.14,244.13,3.44286418]
[1758265308775,6.27,244.15,244.13,3.44286418]
[1758265308981,12.95,244.15,244.13,3.44286418]
[1758265309783,6.68,244.14,244.13,3.44286418]
[1758265310583,6.27,244.15,244.13,3.44286418]
[1758265311385,6.27,244.15,244.14,9.97286418]
[1758265312085,6.27,244.15,244.14,3.44286418]
[1758265312789,2.13751497,244.17,244.14,3.44286418]
[1758265313289,2.13751497,244.17,244.15,6.53]
[1758265313586,6.68,244.19,244.15,9.97286418]
[1758265314488,2.13751497,244.2,244.15,3.44286418]
[1758265314785,6.68,244.18,244.15,3.44286418]
[1758265315288,8.81751497,244.2,244.15,9.97286418]
[1758265315488,6.68,244.19,244.15,9.97286418]
[1758265316589,6.79,244.19,244.15,3.44286418]
[1758265318086,7.06,244.19,244.15,3.44286418]
[1758265319088,14.72751497,244.2,244.16,6.72]
[1758265319286,7.06,244.19,244.15,3.44286418]
[1758265319987,7.66751497,244.2,244.15,3.44286418]
[1758265320187,2.13751497,244.17,244.15,3.44286418]
[1758265320492,7.06,244.16,244.14,3.44286418]
[1758265323396,7.06,244.16,244.15,3.44286418]
[1758265325196,7.66751497,244.2,244.15,3.44286418]
[1758265325388,7.66751497,244.2,244.16,6.72]
[1758265325595,7.66751497,244.2,244.16,3.44286418]
[1758265325903,5.53,244.2,244.16,3.44286418]
[1758265326392,7.06,244.19,244.16,3.44286418]
[1758265327187,7.06,244.19,244.17,3.44286418]
[1758265327393,7.66751497,244.2,244.17,3.44286418]
[1758265327788,5.53,244.2,244.17,10.16286418]
[1758265328000,5.53,244.2,244.18,10.16286418]
[1758265328392,5.53,244.2,244.19,3.44286418]
[1758265328595,5.53,244.2,244.19,10.16286418]
[1758265328797,5.53,244.2,244.19,11.31115254]
[1758265329195,5.53,244.2,244.19,6.72]
[1758265332099,5.53,244.2,244.19,13.60833666]
[1758265332298,5.53,244.2,244.17,1.39248736]
[1758265332299,5.53,244.2,244.17,6.91501604]
[1758265332502,5.53,244.2,244.19,4.59070484]
[1758265332803,12.59,244.2,244.19,4.59070484]
[1758265333298,5.93,244.2,244.17,0.02667938]
[1758265333506,8.42580798,244.18,244.17,3.47013732]
[1758265333708,8.42580798,244.18,244.14,4.59070484]
[1758265333901,5.93,244.2,244.1,6.88833666]
[1758265333902,7.06,244.14,244.1,4.59070484]
[1758265334103,8.42580798,244.11,244.1,4.59070484]
[1758265334401,8.42580798,244.11,244.08,4.59070484]
[1758265334602,1.36580798,244.11,244.08,11.31070484]
[1758265334799,7.06,244.15,244.08,4.59070484]
[1758265335004,8.42580798,244.15,244.08,4.59070484]
[1758265335598,1.36580798,244.18,244.1,4.59070484]
[1758265335808,13.95580798,244.2,244.12,6.72]
[1758265336007,13.95580798,244.2,244.13,4.59070484]
[1758265336008,5.53,244.2,244.13,4.59070484]
[1758265336213,5.53,244.2,244.14,6.74952172]
[1758265336813,5.53,244.2,244.16,4.59070484]
[1758265337021,5.53,244.2,244.17,11.31070484]
[1758265337221,5.53,244.2,244.17,6.72]
[1758265338425,5.53,244.2,244.15,4.59070484]
[1758265338623,7.06,244.18,244.14,4.62022656]
[1758265338824,7.06,244.18,244.14,0.02952172]
[1758265339527,7.06,244.18,244.14,4.62022656]
[1758265339827,7.06,244.18,244.14,0.02952172]
[1758265340027,7.06,244.18,244.14,4.62022656]
[1758265341027,1.36580798,244.19,244.14,4.62022656]
[1758265341232,1.36580798,244.19,244.14,0.02952172]
[1758265341529,7.06,244.18,244.14,0.02952172]
[1758265341723,1.36580798,244.16,244.14,0.02952172]
[1758265342225,7.06,244.15,244.14,0.02952172]
[1758265347735,7.46,244.15,244.06,4.59070484]
[1758265347936,7.06,244.08,244.02,4.59070484]
[1758265348129,8.14580798,244.04,244.01,4.59070484]
[1758265348333,6.78,244.03,244.0,4.59070484]
[1758265348534,1.36580798,244.01,243.99,4.59070484]
[1758265349327,1.36580798,244.0,243.99,6.88]
[1758265353633,1.36580798,244.0,243.97,6.91081135]
[1758265354238,1.36580798,244.0,243.93,6.88]
[1758265354437,1.36580798,243.95,243.89,6.88]
[1758265355537,0.02957528,243.94,243.87,6.88]
[1758265356434,0.02957528,243.94,243.87,12.29671398]
[1758265356638,0.02957528,243.94,243.88,6.88]
[1758265358035,0.4,243.93,243.77,6.88833666]
[1758265358333,0.02957528,243.94,243.7,9.14365836]
[1758265358334,1.36580798,243.87,243.75,8.24580798]
[1758265358733,0.03105382,243.83,243.75,8.24580798]
[1758265359130,0.03105382,243.83,243.75,20.5633361]
[1758265359338,0.03105382,243.83,243.75,8.24580798]
[1758265359740,0.03105382,243.83,243.75,6.88]
[1758265360339,0.03105382,243.83,243.7,3.6911]
[1758265360340,6.78,243.82,243.7,6.88]
[1758265360641,6.78,243.79,243.7,6.88]
[1758265360939,6.78,243.75,243.65,6.88]
[1758265361331,3.1717363,243.76,243.72,0.02975825]
[1758265361531,6.78,243.75,243.72,0.02975825]
[1758265361939,4.55,243.74,243.72,0.02975825]
[1758265362136,6.78,243.73,243.72,0.02975825]
[1758265362938,4.55,243.74,243.72,0.02975825]
[1758265364636,4.55,243.74,243.73,6.88]
[1758265365041,4.55,243.74,243.72,0.02975825]
[1758265365946,10.77,243.74,243.72,0.02975825]
[1758265367950,6.78,243.73,243.72,0.02975825]
[1758265370245,7.2,243.73,243.72,0.02975825]
[1758265372348,7.2,243.73,243.59,6.88]
[1758265372546,6.78,243.69,243.59,6.88]
[1758265373849,0.02832369,243.66,243.59,6.88]
[1758265374145,0.02832369,243.66,243.59,10.0517363]
[1758265374347,0.02832369,243.66,243.61,3.6924]